{"text_format":"1","workbook":"xlsx","n_sheets":14,"sheets":["Menu 1 UE 1","Menu 1 NasaTLX 1","Menu 2 UE 1","Menu 2 NasaTLX 1","Menu 3 UE 1","Menu 3 NasaTLX 1","Menu 4 UE 1","Menu 4 NasaTLX 1","Menu 5 UE 1","Menu 5 NasaTLX 1","Menu 6 UE 1","Menu 6 NasaTLX 1","Resultados","Ponderaciones"],"not_rendered":{"charts":0,"images":6,"macros":1,"external_links":0,"defined_names":0,"comments":0,"pivot_tables":0},"unopened":[],"bounds":{"document_bytes":16777216,"sheet_cells":100000,"rows_first":2000,"rows_last":500,"rows_between":2000,"halvings":0,"cell_chars":16384,"cell_head_chars":4096},"cells_cut":0,"cells_raw":0,"read":"whole","date_system":"1900"}

{"sheet":"Menu 1 UE 1","index":0,"n_rows":19,"n_cols":13,"rows_kept":19,"cut":false,"hidden":false,"merged":[[1,4,1,12]]}
[]
[null,null,null,null,"For each of the opposite properties listed below, select the degree with which you felt most identified while using the Blinking Menu."]
[]
[null,null,null,null,null,1,2,3,4,5,6,7]
[null,null,null,null,"boring",null,null,null,null,null,null,null,"exciting"]
[]
[null,null,null,null,"not interesting",null,null,null,null,null,null,null,"interesting"]
[]
[null,null,null,null,"inventive",null,null,null,null,null,null,null,"conventional"]
[]
[null,null,null,null,"obstructive",null,null,null,null,null,null,null,"supportive"]
[]
[null,null,null,null,"complicated",null,null,null,null,null,null,null,"easy"]
[]
[null,null,null,null,"usual",null,null,null,null,null,null,null,"leading edge"]
[]
[null,null,null,null,"inefficient",null,null,null,null,null,null,null,"efficient"]
[]
[null,null,null,null,"clear",null,null,null,null,null,null,null,"confusing"]

{"sheet":"Menu 1 NasaTLX 1","index":1,"n_rows":20,"n_cols":13,"rows_kept":20,"cut":false,"hidden":false,"merged":[[1,4,1,12]]}
[]
[null,null,null,null,"Drag the slider to quantify your perceived cognitive load while using the Blinking Menu."]
[]
[null,null,null,null,"Mental Demand"]
[null,null,null,null,"Very Low",null,null,null,null,null,null,null,"Very High"]
[]
[null,null,null,null,"Physical Demand"]
[null,null,null,null,"Very Low",null,null,null,null,null,null,null,"Very High"]
[]
[null,null,null,null,"Temporal Demand"]
[null,null,null,null,"Very Low",null,null,null,null,null,null,null,"Very High"]
[]
[null,null,null,null,"Performance"]
[null,null,null,null,"Failure",null,null,null,null,null,null,null,"Perfect"]
[]
[null,null,null,null,"Effort"]
[null,null,null,null,"Very Low",null,null,null,null,null,null,null,"Very High"]
[]
[null,null,null,null,"Frustration level "]
[null,null,null,null,"Very Low",null,null,null,null,null,null,null,"Very High"]

{"sheet":"Menu 2 UE 1","index":2,"n_rows":19,"n_cols":13,"rows_kept":19,"cut":false,"hidden":false,"merged":[[1,4,1,12]]}
[]
[null,null,null,null,"For each of the opposite properties listed below, select the degree with which you felt most identified while using the Morphing Menu."]
[]
[null,null,null,null,null,1,2,3,4,5,6,7]
[null,null,null,null,"boring",null,null,null,null,null,null,null,"exciting"]
[]
[null,null,null,null,"not interesting",null,null,null,null,null,null,null,"interesting"]
[]
[null,null,null,null,"inventive",null,null,null,null,null,null,null,"conventional"]
[]
[null,null,null,null,"obstructive",null,null,null,null,null,null,null,"supportive"]
[]
[null,null,null,null,"complicated",null,null,null,null,null,null,null,"easy"]
[]
[null,null,null,null,"usual",null,null,null,null,null,null,null,"leading edge"]
[]
[null,null,null,null,"inefficient",null,null,null,null,null,null,null,"efficient"]
[]
[null,null,null,null,"clear",null,null,null,null,null,null,null,"confusing"]

{"sheet":"Menu 2 NasaTLX 1","index":3,"n_rows":20,"n_cols":13,"rows_kept":20,"cut":false,"hidden":false,"merged":[[1,4,1,12]]}
[]
[null,null,null,null,"Drag the slider to quantify your perceived cognitive load while using the Morphing Menu."]
[]
[null,null,null,null,"Mental Demand"]
[null,null,null,null,"Very Low",null,null,null,null,null,null,null,"Very High"]
[]
[null,null,null,null,"Physical Demand"]
[null,null,null,null,"Very Low",null,null,null,null,null,null,null,"Very High"]
[]
[null,null,null,null,"Temporal Demand"]
[null,null,null,null,"Very Low",null,null,null,null,null,null,null,"Very High"]
[]
[null,null,null,null,"Performance"]
[null,null,null,null,"Failure",null,null,null,null,null,null,null,"Perfect"]
[]
[null,null,null,null,"Effort"]
[null,null,null,null,"Very Low",null,null,null,null,null,null,null,"Very High"]
[]
[null,null,null,null,"Frustration level "]
[null,null,null,null,"Very Low",null,null,null,null,null,null,null,"Very High"]

{"sheet":"Menu 3 UE 1","index":4,"n_rows":19,"n_cols":13,"rows_kept":19,"cut":false,"hidden":false,"merged":[[1,4,1,12]]}
[]
[null,null,null,null,"For each of the opposite properties listed below, select the degree with which you felt most identified while using the Out-Context-Disappearing Menu."]
[]
[null,null,null,null,null,1,2,3,4,5,6,7]
[null,null,null,null,"boring",null,null,null,null,null,null,null,"exciting"]
[]
[null,null,null,null,"not interesting",null,null,null,null,null,null,null,"interesting"]
[]
[null,null,null,null,"inventive",null,null,null,null,null,null,null,"conventional"]
[]
[null,null,null,null,"obstructive",null,null,null,null,null,null,null,"supportive"]
[]
[null,null,null,null,"complicated",null,null,null,null,null,null,null,"easy"]
[]
[null,null,null,null,"usual",null,null,null,null,null,null,null,"leading edge"]
[]
[null,null,null,null,"inefficient",null,null,null,null,null,null,null,"efficient"]
[]
[null,null,null,null,"clear",null,null,null,null,null,null,null,"confusing"]

{"sheet":"Menu 3 NasaTLX 1","index":5,"n_rows":20,"n_cols":13,"rows_kept":20,"cut":false,"hidden":false,"merged":[[1,4,1,12]]}
[]
[null,null,null,null,"Drag the slider to quantify your perceived cognitive load while using the Out-Context Disappearing Menu."]
[]
[null,null,null,null,"Mental Demand"]
[null,null,null,null,"Very Low",null,null,null,null,null,null,null,"Very High"]
[]
[null,null,null,null,"Physical Demand"]
[null,null,null,null,"Very Low",null,null,null,null,null,null,null,"Very High"]
[]
[null,null,null,null,"Temporal Demand"]
[null,null,null,null,"Very Low",null,null,null,null,null,null,null,"Very High"]
[]
[null,null,null,null,"Performance"]
[null,null,null,null,"Failure",null,null,null,null,null,null,null,"Perfect"]
[]
[null,null,null,null,"Effort"]
[null,null,null,null,"Very Low",null,null,null,null,null,null,null,"Very High"]
[]
[null,null,null,null,"Frustration level "]
[null,null,null,null,"Very Low",null,null,null,null,null,null,null,"Very High"]

{"sheet":"Menu 4 UE 1","index":6,"n_rows":19,"n_cols":13,"rows_kept":19,"cut":false,"hidden":false,"merged":[[1,1,1,12],[2,2,2,6]]}
[]
[null,"6 of the menus that you have just used will be shown. Answer the following questions below about your user experience with the different types of menus.\nRemember that, there are no correct answers, mark the option that is closest to how you felt while using the different types of menus."]
[null,"Your ID:"]
[]
[null,null,null,null,"boring",null,null,null,null,null,null,null,"exciting"]
[]
[null,null,null,null,"not interesting",null,null,null,null,null,null,null,"interesting"]
[]
[null,null,null,null,"inventive",null,null,null,null,null,null,null,"conventional"]
[]
[null,null,null,null,"obstructive",null,null,null,null,null,null,null,"supportive"]
[]
[null,null,null,null,"complicated",null,null,null,null,null,null,null,"easy"]
[]
[null,null,null,null,"usual",null,null,null,null,null,null,null,"leading edge"]
[]
[null,null,null,null,"inefficient",null,null,null,null,null,null,null,"efficient"]
[]
[null,null,null,null,"clear",null,null,null,null,null,null,null,"confusing"]

{"sheet":"Menu 4 NasaTLX 1","index":7,"n_rows":20,"n_cols":13,"rows_kept":20,"cut":false,"hidden":false,"merged":[[1,4,1,12]]}
[]
[null,null,null,null,"Drag the slider to quantify your perceived cognitive load while using the Leaf Menu. "]
[]
[null,null,null,null,"Mental Demand"]
[null,null,null,null,"Very Low",null,null,null,null,null,null,null,"Very High"]
[]
[null,null,null,null,"Physical Demand"]
[null,null,null,null,"Very Low",null,null,null,null,null,null,null,"Very High"]
[]
[null,null,null,null,"Temporal Demand"]
[null,null,null,null,"Very Low",null,null,null,null,null,null,null,"Very High"]
[]
[null,null,null,null,"Performance"]
[null,null,null,null,"Failure",null,null,null,null,null,null,null,"Perfect"]
[]
[null,null,null,null,"Effort"]
[null,null,null,null,"Very Low",null,null,null,null,null,null,null,"Very High"]
[]
[null,null,null,null,"Frustration level "]
[null,null,null,null,"Very Low",null,null,null,null,null,null,null,"Very High"]

{"sheet":"Menu 5 UE 1","index":8,"n_rows":19,"n_cols":13,"rows_kept":19,"cut":false,"hidden":false,"merged":[[1,4,1,12]]}
[]
[null,null,null,null,"For each of the opposite properties listed below, select the degree with which you felt most identified while using the Split without replication Menu."]
[]
[null,null,null,null,null,1,2,3,4,5,6,7]
[null,null,null,null,"boring",null,null,null,null,null,null,null,"exciting"]
[]
[null,null,null,null,"not interesting",null,null,null,null,null,null,null,"interesting"]
[]
[null,null,null,null,"inventive",null,null,null,null,null,null,null,"conventional"]
[]
[null,null,null,null,"obstructive",null,null,null,null,null,null,null,"supportive"]
[]
[null,null,null,null,"complicated",null,null,null,null,null,null,null,"easy"]
[]
[null,null,null,null,"usual",null,null,null,null,null,null,null,"leading edge"]
[]
[null,null,null,null,"inefficient",null,null,null,null,null,null,null,"efficient"]
[]
[null,null,null,null,"clear",null,null,null,null,null,null,null,"confusing"]

{"sheet":"Menu 5 NasaTLX 1","index":9,"n_rows":20,"n_cols":13,"rows_kept":20,"cut":false,"hidden":false,"merged":[[1,4,1,12]]}
[]
[null,null,null,null,"Drag the slider to quantify your perceived cognitive load while using the Split without replication Menu."]
[]
[null,null,null,null,"Mental Demand"]
[null,null,null,null,"Very Low",null,null,null,null,null,null,null,"Very High"]
[]
[null,null,null,null,"Physical Demand"]
[null,null,null,null,"Very Low",null,null,null,null,null,null,null,"Very High"]
[]
[null,null,null,null,"Temporal Demand"]
[null,null,null,null,"Very Low",null,null,null,null,null,null,null,"Very High"]
[]
[null,null,null,null,"Performance"]
[null,null,null,null,"Failure",null,null,null,null,null,null,null,"Perfect"]
[]
[null,null,null,null,"Effort"]
[null,null,null,null,"Very Low",null,null,null,null,null,null,null,"Very High"]
[]
[null,null,null,null,"Frustration level "]
[null,null,null,null,"Very Low",null,null,null,null,null,null,null,"Very High"]

{"sheet":"Menu 6 UE 1","index":10,"n_rows":19,"n_cols":13,"rows_kept":19,"cut":false,"hidden":false,"merged":[[1,4,1,12]]}
[]
[null,null,null,null,"For each of the opposite properties listed below, select the degree with which you felt most identified while using the Italicing Menu."]
[]
[null,null,null,null,null,1,2,3,4,5,6,7]
[null,null,null,null,"boring",null,null,null,null,null,null,null,"exciting"]
[]
[null,null,null,null,"not interesting",null,null,null,null,null,null,null,"interesting"]
[]
[null,null,null,null,"inventive",null,null,null,null,null,null,null,"conventional"]
[]
[null,null,null,null,"obstructive",null,null,null,null,null,null,null,"supportive"]
[]
[null,null,null,null,"complicated",null,null,null,null,null,null,null,"easy"]
[]
[null,null,null,null,"usual",null,null,null,null,null,null,null,"leading edge"]
[]
[null,null,null,null,"inefficient",null,null,null,null,null,null,null,"efficient"]
[]
[null,null,null,null,"clear",null,null,null,null,null,null,null,"confusing"]

{"sheet":"Menu 6 NasaTLX 1","index":11,"n_rows":20,"n_cols":13,"rows_kept":20,"cut":false,"hidden":false,"merged":[[1,4,1,12]]}
[]
[null,null,null,null,"Drag the slider to quantify your perceived cognitive load while using the Italicing Menu."]
[]
[null,null,null,null,"Mental Demand"]
[null,null,null,null,"Very Low",null,null,null,null,null,null,null,"Very High"]
[]
[null,null,null,null,"Physical Demand"]
[null,null,null,null,"Very Low",null,null,null,null,null,null,null,"Very High"]
[]
[null,null,null,null,"Temporal Demand"]
[null,null,null,null,"Very Low",null,null,null,null,null,null,null,"Very High"]
[]
[null,null,null,null,"Performance"]
[null,null,null,null,"Failure",null,null,null,null,null,null,null,"Perfect"]
[]
[null,null,null,null,"Effort"]
[null,null,null,null,"Very Low",null,null,null,null,null,null,null,"Very High"]
[]
[null,null,null,null,"Frustration level "]
[null,null,null,null,"Very Low",null,null,null,null,null,null,null,"Very High"]

{"sheet":"Resultados","index":12,"n_rows":21,"n_cols":25,"rows_kept":21,"cut":false,"hidden":false,"merged":[[3,1,8,1]]}
[]
[]
[null,"Participante","Menu","UE 1","UE 2","UE 3","UE 4","UE 5","UE 6","UE 7","UE 8","TLX 1","TLX 2","TLX 3","TLX 4","TLX 5","TLX 6","TLX 1 Ponderada","TLX 2 Ponderada","TLX 3 Ponderada","TLX 4 Ponderada","TLX 5 Ponderada","TLX 6 Ponderada","Total:","Media ponderada"]
[null,{"$f":"'Menu 4 UE 1'!C3","v":0},"Blinking",4,4,4,4,4,4,4,4,10,10,10,10,10,10,{"$f":"(L4*100/20)*$R$17","v":0},{"$f":"(M4*100/20)*$R$16","v":0},{"$f":"(N4*100/20)*$R$18","v":0},{"$f":"(O4*100/20)*$R$14","v":0},{"$f":"(P4*100/20)*$R$13","v":0},{"$f":"(Q4*100/20)*$R$15","v":0},{"$f":"SUM(R4:W4)","v":0},{"$f":"X4/$R$19","v":{"$error":"#DIV/0!"}}]
[null,null,"Morphing",4,4,4,4,4,4,4,4,10,10,10,10,10,10,{"$f":"(L5*100/20)*$R$17","v":0},{"$f":"(M5*100/20)*$R$16","v":0},{"$f":"(N5*100/20)*$R$18","v":0},{"$f":"(O5*100/20)*$R$14","v":0},{"$f":"(P5*100/20)*$R$13","v":0},{"$f":"(Q5*100/20)*$R$15","v":0},{"$f":"SUM(R5:W5)","v":0},{"$f":"X5/$R$19","v":{"$error":"#DIV/0!"}}]
[null,null,"Out-Context",4,4,4,4,4,4,4,4,10,10,10,10,10,10,0,0,0,0,0,0,0,{"$error":"#DIV/0!"}]
[null,null,"Leaf",4,4,4,4,4,4,4,4,10,10,10,10,10,10,0,0,0,0,0,0,0,{"$error":"#DIV/0!"}]
[null,null,"Split w/o replication",4,4,4,4,4,4,4,4,10,10,10,10,10,10,0,0,0,0,0,0,0,{"$error":"#DIV/0!"}]
[null,null,"Italica",4,4,4,4,4,4,4,4,10,10,10,10,10,10,0,0,0,0,0,0,0,{"$error":"#DIV/0!"}]
[]
[null,"Pregunta",1,2,3,4,5,6,7,8,9,10,11,12,13,14,15]
[null,"Respuesta",0,0,0,0,0,0,0,0,0,0,0,0,0,0,0,"Pesos"]
[null,"Effort",null,null,null,null,null,{"$f":"COUNTIF(H12,2)","v":0},null,null,null,null,{"$f":"COUNTIF(M12,2)","v":0},{"$f":"COUNTIF(N12,1)","v":0},{"$f":"COUNTIF(O12,2)","v":0},null,{"$f":"COUNTIF(Q12,2)","v":0},{"$f":"COUNTIF(C13:Q13,1)","v":0},"Effort"]
[null,"Performance",null,null,null,null,{"$f":"COUNTIF(G12,1)","v":0},null,{"$f":"COUNTIF(I12,2)","v":0},null,{"$f":"COUNTIF(K12,1)","v":0},null,null,{"$f":"COUNTIF(N12,2)","v":0},null,{"$f":"COUNTIF(P12,1)","v":0},null,{"$f":"COUNTIF(C14:Q14,1)","v":0},"Performance"]
[null,"Frustracion",null,null,{"$f":"COUNTIF(E12,2)","v":0},null,null,null,null,{"$f":"COUNTIF(J12,2)","v":0},{"$f":"COUNTIF(K12,2)","v":0},{"$f":"COUNTIF(L12,1)","v":0},null,null,null,null,{"$f":"COUNTIF(Q12,1)","v":0},0,"Frustracion"]
[null,"Fisica",{"$f":"COUNTIF(C12,1)","v":0},{"$f":"COUNTIF(D12,2)","v":0},null,null,{"$f":"COUNTIF(G12,2)","v":0},null,null,{"$f":"COUNTIF(J12,1)","v":0},null,null,{"$f":"COUNTIF(M12,1)","v":0},null,null,null,null,0,"Fisica"]
[null,"Mental",{"$f":"COUNTIF(C12,2)","v":0},null,null,{"$f":"COUNTIF(F12,1)","v":0},null,null,{"$f":"COUNTIF(I12,1)","v":0},null,null,{"$f":"COUNTIF(L12,2)","v":0},null,null,{"$f":"COUNTIF(O12,1)","v":0},null,null,0,"Mental"]
[null,"Temporal",null,{"$f":"COUNTIF(D12,1)","v":0},{"$f":"COUNTIF(E12,1)","v":0},{"$f":"COUNTIF(F12,2)","v":0},null,{"$f":"COUNTIF(H12,1)","v":0},null,null,null,null,null,null,null,{"$f":"COUNTIF(P12,2)","v":0},null,0,"Temporal"]
[null,null,null,null,null,null,null,null,null,null,null,null,null,null,null,null,"Total:",{"$f":"SUM(R13:R18)","v":0}]
[]
[null,"Debemos pasar los datos que tienen la cabecera en VERDE + Negrita (UE 1… UE8 y Media ponderada) a otro excel con TODOS los datos."]

{"sheet":"Ponderaciones","index":13,"n_rows":34,"n_cols":6,"rows_kept":34,"cut":false,"hidden":false,"merged":[[5,5,5,6],[15,5,15,6],[25,5,25,6]]}
[]
[null,"Each person has a different perception of workload. This workload can be measured with a set of variables (e.g. Physical Demand, Temporal Demand, etc.).  "]
[null,"In order to measure which variables have caused the greatest impact, indicate below for each pair of variables:"]
[null,"Which of the two variables do you consider to have had the greatest impact in selecting a menu action?"]
[]
[null,null,"Physical Demand",null,null,"Mental Demand"]
[]
[null,null,"Temporal Demand",null,null,"Physical Demand"]
[]
[null,null,"Temporal Demand",null,null,"Frustration level"]
[]
[null,null,"Mental Demand",null,null,"Temporal Demand"]
[]
[null,null,"Performance",null,null,"Physical Demand"]
[]
[null,null,"Temporal Demand",null,null,"Effort"]
[]
[null,null,"Mental Demand",null,null,"Performance"]
[]
[null,null,"Physical Demand",null,null,"Frustration level"]
[]
[null,null,"Performance",null,null,"Frustration level"]
[]
[null,null,"Frustration level",null,null,"Mental Demand"]
[]
[null,null,"Exigencia fisica",null,null,"Effort"]
[]
[null,null,"Effort",null,null,"Performance"]
[]
[null,null,"Mental Demand",null,null,"Effort"]
[]
[null,null,"Performance",null,null,"Temporal Demand"]
[]
[null,null,"Frustration level",null,null,"Effort"]